Cogmind - Beta 13 @@@ ROGUE MODE // 2024.03.06 @ 11:27:12 Player: SX_7 Result: Self-destructed Performance ------------- Evolutions (2) 1000 Regions Visited (5) 1000 Robots Destroyed (15) 75 Value Destroyed (237) 237 Prototype IDs (4) 80 Alien Tech Used (0) 0 Bonus (300) 300 TOTAL SCORE: 2692 Bonus ------- Aligned with FarCom 300 Cogmind --------- Core Integrity 550/550 Matter 300/300 Energy 250/250 System Corruption 0% Temperature Cool (0) Movement Walking (120) Location -8/Materials Parts ------- > --- POWER (1) -------- Ion Engine > --- PROPULSION (4) --- Aluminum Leg Aluminum Leg Aluminum Leg > --- UTILITY (4) ------ Small Storage Unit Improved Terrain Scanner Seismic Detector > --- WEAPON (2) ------- Medium Laser Guided Plasma Cannon > --- INVENTORY (8) ---- Ion Engine Heat Sink Small Storage Unit Bomb Drone Bay (16/16) Grenade Launcher Peak State ------------ > --- POWER ------------ Ion Engine > --- PROPULSION ------- Aluminum Leg Aluminum Leg > --- UTILITY ---------- Bomb Drone Bay > --- WEAPON ----------- Medium Laser Light Assault Rifle > --- INVENTORY -------- Ion Engine Improved Terrain Scanner Light Assault Rifle [Rating: 19] Favorites ----------- Power Ion Engine Engine Ion Engine Propulsion Aluminum Leg Leg Aluminum Leg Utility Small Storage Unit Device Seismic Detector Storage Small Storage Unit Weapon Medium Laser Energy Gun Medium Laser Energy Cannon Guided Plasma Cannon Ballistic Gun Light Assault Rifle Build | -11 -10 -10 -10 -9 -8 ------- Run | Yrd Mat Min Exi Min Mat Slots Evolved 4 | . . . . . 4 Power . | . . . . . . Propulsion 2 | . . . . . 2 Utility 2 | . . . . . 2 Weapon . | . . . . . . Parts Attached 24 | 7 1 7 7 . 2 Power 2 | 1 1 . . . . Engine 2 | 1 1 . . . . Core . | . . . . . . Reactor . | . . . . . . Propulsion 4 | 2 . 1 . . 1 Treads . | . . . . . . Leg 4 | 2 . 1 . . 1 Wheel . | . . . . . . Hover . | . . . . . . Flight . | . . . . . . Utility 11 | 2 . 4 4 . 1 Device 7 | 1 . 3 2 . 1 Storage 4 | 1 . 1 2 . . Processor . | . . . . . . Hackware . | . . . . . . Protection . | . . . . . . Artifact . | . . . . . . Weapon 7 | 2 . 2 3 . . Energy Gun 2 | 1 . 1 . . . Energy Cannon 2 | . . . 2 . . Ballistic Gun 3 | 1 . 1 1 . . Ballistic Cannon . | . . . . . . Launcher . | . . . . . . Special Weapon . | . . . . . . Impact Weapon . | . . . . . . Slashing Weapon . | . . . . . . Piercing Weapon . | . . . . . . Special Melee Weapon . | . . . . . . Unidentified Prototypes 4 | . . 1 3 . . Parts Lost 1 | . 1 . . . . Power 1 | . 1 . . . . Propulsion . | . . . . . . Utility . | . . . . . . Weapon . | . . . . . . Highest Loss Streak 1 | . 1 . . . . To Critical Strikes . | . . . . . . Average Slot Usage (%) 99 | . 99 100 99 100 81 Engine 13 | . 13 14 14 14 9 Leg 27 | . 28 28 28 28 27 Device 13 | . 14 14 13 14 18 Storage 13 | . 14 14 14 14 9 Energy Gun 13 | . 14 14 14 14 9 Energy Cannon 1 | . . . 3 14 9 Ballistic Gun 12 | . 14 14 10 . . Naked Turns . | . . . . . . Heaviest Build 24 | 14 14 14 23 23 24 Greatest Support 30 | 20 20 20 20 20 30 Greatest Overweight (x) 1 | . . . 1 1 . Average Overweight (x) . | . . . . 1 . Largest Inventory Capacity 8 | 8 8 8 8 8 8 Average Capacity 7 | 7 8 7 8 8 8 Most Carried 8 | 5 8 8 8 8 7 Average Carried 7 | 2 6 7 7 8 6 Final Capacity 8 | 8 8 8 8 8 8 Final Carried 8 | 3 8 8 8 8 6 Class Distribution -------------------- 96% | Mutant Dominant Class ---------------- Mutant | -10/Materials Mutant | -10/Mines Mutant | -10/Exiles Skirmisher | -9/Mines Scavenger-Skirmisher | -8/Materials Resources | -11 -10 -10 -10 -9 -8 ----------- Run | Yrd Mat Min Exi Min Mat Matter Collected 473 | 284 34 60 55 . 40 Remotely . | . . . . . . Salvage Created 424 | 170 254 . . . . Parts 29 | 14 15 . . . . Haulers Intercepted . | . . . . . . Recyclers Shooed . | . . . . . . Parts Field Recycled . | . . . . . . Retrieved Matter . | . . . . . . Parts Self-Destructed . | . . . . . . Prevented . | . . . . . . Kills | -11 -10 -10 -10 -9 -8 ------- Run | Yrd Mat Min Exi Min Mat Combat Hostiles Destroyed 7 | . 7 . . . . Guns 7 | . 7 . . . . Classes Destroyed 6 | 2 4 . . . . Worker 1 | . 1 . . . . Tunneler 5 | 5 . . . . . Recycler 1 | 1 . . . . . Watcher 1 | . 1 . . . . Swarmer 3 | . 3 . . . . Grunt 4 | . 4 . . . . Best Kill Streak 5 | 5 3 . . . . Combat Bots Only 3 | . 3 . . . . Max Kills in Single Turn 1 | 1 1 . . . . Gunslinging . | . . . . . . Exploded . | . . . . . . Melee . | . . . . . . Uniques/NPCs Destroyed . | . . . . . . Combat | -11 -10 -10 -10 -9 -8 -------- Run | Yrd Mat Min Exi Min Mat Hostile Shots Fired 39 | . 39 . . . . Missed 7 | . 7 . . . . Damage Taken 353 | . 353 . . . . Core 60 | . 60 . . . . Absorbed by Shields . | . . . . . . Core Remaining (%) 88 | 100 . . . 76 . Volleys Fired 42 | 15 26 . . 1 . Largest 2 | 2 2 . . 1 . Hottest 120 | 70 70 . . 120 . Shots Fired 83 | 30 52 . . 1 . Gun 82 | 30 52 . . . . Cannon 1 | . . . . 1 . Launcher . | . . . . . . Special . | . . . . . . Kinetic 41 | 15 26 . . . . Thermal 42 | 15 26 . . 1 . Explosive . | . . . . . . Electromagnetic . | . . . . . . Robot Hit Streak 9 | 7 9 . . . . Robot Miss Streak 3 | 3 3 . . . . Penetration Max . | . . . . . . Secondary Targets 1 | . 1 . . . . Max Gunslinging Chain 1 | . 1 . . . . Shots Hit Robots 51 | 18 33 . . . . Core Hits 25 | 8 17 . . . . Critical Kills . | . . . . . . Critical Parts Destroyed . | . . . . . . Critical Strikes . | . . . . . . Melee Attacks . | . . . . . . Impact . | . . . . . . Slashing . | . . . . . . Piercing . | . . . . . . Sneak Attacks . | . . . . . . Combat Hostiles . | . . . . . . Follow-up Attacks . | . . . . . . Damage Inflicted 534 | 188 345 1 . . . Guns 533 | 188 345 . . . . Cannons . | . . . . . . Explosions . | . . . . . . Melee . | . . . . . . Ramming 1 | . . 1 . . . Kinetic 195 | 74 121 . . . . Thermal 338 | 114 224 . . . . Explosive . | . . . . . . Electromagnetic . | . . . . . . Impact . | . . . . . . Slashing . | . . . . . . Piercing . | . . . . . . Highest Corruption . | . . . . . . Average Corruption . | . . . . . . Corruption Purged . | . . . . . . Corruption Blocked . | . . . . . . Overload Shots . | . . . . . . Overflow Damage . | . . . . . . Projectiles . | . . . . . . Explosions . | . . . . . . Melee . | . . . . . . Knockbacks . | . . . . . . Impact . | . . . . . . Kinetic . | . . . . . . Secondary . | . . . . . . Self-Inflicted Damage . | . . . . . . Shots . | . . . . . . Rammed . | . . . . . . Targets Rammed 1 | . . 1 . . . Kicked 1 | . . 1 . . . Crushed . | . . . . . . Highest Temperature 256 | 70 256 . . 80 . Average Temperature 61 | 26 80 . . 42 . Received Heat Transfer 132 | . 132 . . . . Siege Activations . | . . . . . . Robots Corrupted . | . . . . . . Combat Hostiles . | . . . . . . Parts Fried . | . . . . . . Impact Corruptions . | . . . . . . Robots Melted . | . . . . . . Combat Hostiles . | . . . . . . Parts Melted 4 | . 4 . . . . Heat Transferred 999 | 333 666 . . . . Parts Sabotaged . | . . . . . . Parts Stolen . | . . . . . . Parts Stripped . | . . . . . . Power Chain Reactions . | . . . . . . Alert | -11 -10 -10 -10 -9 -8 ------- Run | Yrd Mat Min Exi Min Mat Peak Influence 196 | 30 196 5 . 1 . Initial 19 | . 19 5 . . . Average 28 | 13 71 1 . 1 . Maximum Alert Level . | . . . . . . Low Security (%) 100 | 100 100 100 . 100 100 Level 1 . | . . . . . . Level 2 . | . . . . . . Level 3 . | . . . . . . Level 4 . | . . . . . . Level 5 . | . . . . . . High Security . | . . . . . . Max Security . | . . . . . . Squads Dispatched 4 | . 2 . . . 2 Investigation 3 | . 1 . . . 2 Extermination . | . . . . . . Reinforcement 1 | . 1 . . . . Assault . | . . . . . . Garrison . | . . . . . . Intercept . | . . . . . . Searches Triggered . | . . . . . . Construction Impeded . | . . . . . . Haulers Reinforced . | . . . . . . Active Scanning Responses . | . . . . . . Cargo Convoy Interrupts . | . . . . . . Stealth | -11 -10 -10 -10 -9 -8 --------- Run | Yrd Mat Min Exi Min Mat Distress Signals 2 | . 2 . . . . Communications Jammed . | . . . . . . Distress Signals . | . . . . . . Times Spotted 9 | . 9 . . . . Peak Tracking Total 4 | . 4 . . . . Tactical Retreats 3 | . 3 . . . . Traps | -11 -10 -10 -10 -9 -8 ------- Run | Yrd Mat Min Exi Min Mat Traps Triggered 1 | . 1 . . . . Indirectly . | . . . . . . Trap Hack Attempts . | . . . . . . Triggered . | . . . . . . Disarmed . | . . . . . . Reprogrammed . | . . . . . . Reused . | . . . . . . Traps Extracted . | . . . . . . Installed . | . . . . . . Triggered . | . . . . . . Machines | -11 -10 -10 -10 -9 -8 ---------- Run | Yrd Mat Min Exi Min Mat Machines Disabled . | . . . . . . Max in Single Turn . | . . . . . . Machines Repaired . | . . . . . . Machines Dismantled . | . . . . . . Machines Sabotaged . | . . . . . . Overloaded Fab Kills . | . . . . . . Hacking | -11 -10 -10 -10 -9 -8 --------- Run | Yrd Mat Min Exi Min Mat Machines Accessed 8 | . 5 1 . . 2 Terminals 5 | . 4 . . . 1 Fabricators . | . . . . . . Repair Stations . | . . . . . . Recycling Units 1 | . 1 . . . . Scanalyzers . | . . . . . . Garrison Access 1 | . . . . . 1 Total Hacks 17 | . 9 1 . . 7 Successful 4 | . 3 1 . . . Failed 13 | . 6 . . . 7 Catastrophic 7 | . 3 . . . 4 Database Lockouts . | . . . . . . Manual 12 | . 8 . 1 . 3 Terminals 10 | . 7 . . . 3 Fabricators . | . . . . . . Repair Stations . | . . . . . . Recycling Units 2 | . 2 . . . . Scanalyzers . | . . . . . . Garrison Access 4 | . . . . . 4 Terminal Hacks 3 | . 2 1 . . . Open Door 1 | . . 1 . . . Terminal Index 1 | . 1 . . . . Locate Traps 1 | . 1 . . . . Fabricator Hacks . | . . . . . . Repair Station Hacks . | . . . . . . Recycling Unit Hacks . | . . . . . . Scanalyzer . | . . . . . . Garrison Access Hacks . | . . . . . . Unauthorized Hacks 1 | . 1 . . . . Terminals . | . . . . . . Fabricators . | . . . . . . Repair Stations . | . . . . . . Recycling Units 1 | . 1 . . . . Reject 1 | . 1 . . . . Scanalyzers . | . . . . . . Garrison Access . | . . . . . . Data Cores Recovered . | . . . . . . Used . | . . . . . . Hacking Detections 7 | . 5 . . . 2 Full Trace Events 2 | . . . . . 2 Feedback Events . | . . . . . . Feedback Blocked . | . . . . . . Robot Schematics Acquired . | . . . . . . Robots Built . | . . . . . . Authchips . | . . . . . . Time . | . . . . . . Total Robot Build Rating . | . . . . . . Part Schematics Acquired . | . . . . . . Parts Built . | . . . . . . Authchips . | . . . . . . Time . | . . . . . . Total Part Build Rating . | . . . . . . Parts Repaired . | . . . . . . Time . | . . . . . . Parts Recycled . | . . . . . . Recycled Matter . | . . . . . . Retrieved Matter . | . . . . . . Retrieved Components . | . . . . . . Parts Scanalyzed . | . . . . . . Part Schematics Acquired . | . . . . . . Parts Damaged . | . . . . . . Bothacking | -11 -10 -10 -10 -9 -8 ------------ Run | Yrd Mat Min Exi Min Mat Used RIF Installer . | . . . . . . Robots Hacked . | . . . . . . Non-combat . | . . . . . . Combat . | . . . . . . Robot Hacks Applied . | . . . . . . Relay Couplers Released . | . . . . . . Fabnet Peak Effective % . | . . . . . . Robots Rewired . | . . . . . . Allies Hacked . | . . . . . . Hacks Repelled . | . . . . . . Allies | -11 -10 -10 -10 -9 -8 -------- Run | Yrd Mat Min Exi Min Mat Total Allies . | . . . . . . Largest Group . | . . . . . . Highest-Rated Group . | . . . . . . Highest-Rated Ally . | . . . . . . Total Orders . | . . . . . . Ally Attacks . | . . . . . . Total Damage . | . . . . . . Kills . | . . . . . . Allies Corrupted . | . . . . . . Allies Melted 1 | . . . . 1 . Intel | -11 -10 -10 -10 -9 -8 ------- Run | Yrd Mat Min Exi Min Mat Robot Analysis Total . | . . . . . . Derelict Logs Recovered 1 | . . 1 . . . Drone Launches . | . . . . . . Drone Recoveries . | . . . . . . Exploration | -11 -10 -10 -10 -9 -8 ------------- Run | Yrd Mat Min Exi Min Mat Turns Passed 3358 | 220 902 1212 914 75 35 Spaces Moved 2481 | 140 655 940 681 38 27 Core 18 | 18 . . . . . Treads . | . . . . . . Legs 2463 | 122 655 940 681 38 27 Wheels . | . . . . . . Hover . | . . . . . . Flight . | . . . . . . Fastest Speed 50 | 50 120 120 120 190 120 Average Speed 123 | 111 120 120 131 190 120 Slowest Speed 190 | 120 120 120 190 190 120 Overloaded Moves . | . . . . . . Propulsion Burnouts . | . . . . . . Robots Hopped . | . . . . . . Cave-ins Triggered . | . . . . . . Exploration Rate (%) 45 | 6 58 100 90 16 3 Regions Visited 5 Branch Regions 3 Pre-discovered Areas 1 | . . 1 . . . Known Exits Taken . | . . . . . . Unknown Exits Taken 5 | 1 1 1 1 1 . Scrap Searched 1 | . . 1 . . . Spaces Dug 1 | . . . . 1 . Terrain Destroyed 1 | . . . . 1 . Melee . | . . . . . . Projectile 1 | . . . . 1 . AOE . | . . . . . . Terrain Rammed . | . . . . . . Walls Destroyed . | . . . . . . Machines Disabled . | . . . . . . Actions | -11 -10 -10 -10 -9 -8 --------- Run | Yrd Mat Min Exi Min Mat Total 2695 | 177 725 1025 699 40 29 Wait 104 | 6 34 62 . 2 . Move 2476 | 139 654 939 680 37 27 Hop . | . . . . . . Pick Up 28 | 10 8 8 2 . . Fast Attach 6 | . . 1 5 . . Attach 13 | 7 1 2 1 . 2 Detach 1 | . . 1 . . . Swap 5 | . . 4 1 . . Drop 17 | . 2 7 8 . . Fire 42 | 15 26 . . 1 . Melee . | . . . . . . Ram . | . . . . . . Kick 1 | . . 1 . . . Crush . | . . . . . . Escape Stasis . | . . . . . . Rewire 2 | . . . 2 . . Trap . | . . . . . . Miscellaneous . | . . . . . . Route ------- -11/Scrapyard -10/Materials (discovered 2 exits: [*Mat] / *Min) -10/Mines (discovered 4 exits: [*Mat x2] / *Exi / [*Sub]) -10/Exiles (discovered 2 exits: [*Min x2]) -9/Mines -8/Materials History --------- Turn | Location | Event 6 | -11/Scrapyard | Discovered new exit (range 16) 221 | -11/Scrapyard | Entered Materials 317 | -10/Materials | Build established: Mutant 520 | -10/Materials | Discovered new exit (range 11) 556 | -10/Materials | Discovered new exit (range 11) 1123 | -10/Materials | Entered Mines 1169 | -10/Mines | Discovered new exit (range 5) 1233 | -10/Mines | Learned Materials security intel 1245 | -10/Mines | Found the Drone Emporium 1260 | -10/Mines | Found Prototype Device 1262 | -10/Mines | Identified Bomb Drone Bay 1711 | -10/Mines | Discovered new exit (range 11) 1898 | -10/Mines | Learned location of Storage (-9) 1900 | -10/Mines | Discovered new exit (range 7) 2329 | -10/Mines | Deemed a non-threat by the Exiles lab entrance 2330 | -10/Mines | Discovered new exit (range 5) 2335 | -10/Mines | Entered Exiles 2364 | -10/Exiles | Met 8R-AWN 2386 | -10/Exiles | Met EX-HEX 2448 | -10/Exiles | Met EX-BIN 2462 | -10/Exiles | Met EX-DEC 2536 | -10/Exiles | Visited The Gauntlet 2718 | -10/Exiles | Discovered new exit (range 10) 2837 | -10/Exiles | Aligned with FarCom system 2838 | -10/Exiles | Given EX-Vault access code 2867 | -10/Exiles | Opened EX-Vault 2880 | -10/Exiles | Found Prototype Storage 2880 | -10/Exiles | Identified Superbattery 2886 | -10/Exiles | Found Prototype Device 2886 | -10/Exiles | Identified Supersonic Drone Bay 2892 | -10/Exiles | Found Prototype Energy Cannon 2892 | -10/Exiles | Identified Gui. Plasma Cannon 2930 | -10/Exiles | Warned to stay clear of 0b10 Research branches 3228 | -10/Exiles | Discovered new exit (range 14) 3249 | -10/Exiles | Left Exiles lab with Gui. Plasma Cannon 3249 | -10/Exiles | Entered Mines 3250 | -9/Mines | Assembled infested the area 3255 | -9/Mines | Assisted by a Guerilla fighting off Assembled 3268 | -9/Mines | Met a Derelict bent on vengeance 3293 | -9/Mines | Found a hidden stash of uninstalled traps 3310 | -9/Mines | Discovered new exit (range 5) 3324 | -9/Mines | Entered Materials 3324 | -8/Materials | Evolved 4 slots: Propulsion x2, Utility x2 3359 | -8/Materials | Self-destructed Last Messages --------------- 03255_ A derelict emerges from the shadows: "You need to get out of here! I've been tracking a group of Assembled to figure out where they're coming from, and they're closing on this area, come on!" 03293_ A stash of uninstalled traps is collected here! 03310_ EXIT=FOUND Distant sounds of combat echo through the corridors. PARAMETERS=PROPULSION+2,UTILITY+2 LOCATION=UNKNOWN GOAL=ESCAPE 03324_ Receiving FarCom transmissions... Loading Materials security intel (x10)... 03334_ Acquired 40 matter. 03350_ Connecting with Garrison Access... 03350_ Current location identified: Materials 03350_ ALERT: Suspicious activity at Garrison Access M001. Dispatching Investigation squad. 03359_ Connecting with Terminal... 03359_ ALERT: Suspicious activity at Terminal M001. Dispatching Investigation squad. Map ----- +----------------------------------------------------+ | | | | | | | | | | | | | | | | | | | | | | | | | | | ???????????###########?????????????????????????? | | ???????????# #?????????????????????????? | | ???????????# = !!#??#####??????????????????? | | ??????????## ! #??# " #??????????????????? | | ???????#???# % #??#"G"#???#??????????????? | | ???????????#####+########" "#######????????????? | | ????????????# #????????????? | | ????????????# #????????????? | | ??????????#?# ??????? | | ????????????###########+########+###+###???????? | | ????????????????????# *#???? ??????????????? | | ????????????????????# #???????????????????? | | ??????????#?????????# @ #???????????????????? | | ?????????????#????#?# "T" !#???????????????????? | | ????????????????????# """ #???????????????????? | | ????????????????????# #???????????????????? | | ??#???#?????????????########???????????????????? | | ???????????????????#???????????????????????????? | | ????????????????#??????????????????????????????? | | ??????????????????????????#????????????????????? | | ???????????????????????????????????????????????? | | ???????????????#???????????????????????????????? | | ???????????????????????????????????????????????? | | ????????????????????????????#??????????????????? | | ???????????????????????????????????????????????? | | ???????????????????????????????????????????????? | | ???????????????????????????????????????????????? | | ???????????????????????????????????????????????? | | ???????????????????????????????????????????????? | | ???????????????????????????????????????????????? | | ???????????????????????????????????????????????? | | ???????????????????????????????????????????????? | | ???????????????????????????????????????????????? | | ???????????????????????????????????????????????? | | ???????????????????????????????????????????????? | | ???????????????????????????????????????????????? | | ???????????????????????????????????????????????? | +----------------------------------------------------+ Best States ------------- Heat Dissipation 31 Energy Generation 10 Energy Capacity 250 Matter Stores 300 Matter Capacity 300 Sight Range 16 Terrain Scan Range 16 Terrain Scan Density 10 Evasion (%) 55 Item Schematics ----------------- None Robot Schematics ------------------ None Fabricated ------------ Nothing Alien Tech Used ----------------- None Achievements -------------- None Challenges ------------ None Game ------ Seed MetaDisruptorPerforator Manual? 0 Play Time 00:27:22 Cumulative 14.7 hours Start 2024.03.06 @ 10:39:30 End 2024.03.06 @ 11:27:12 Sessions 1 Manual Loads 0 Difficulty Rogue Special Mode None Game No. 18 Rogue 17 Adventurer 1 Explorer 0 Win Type - Total 0 Types 0/0/0/0/0/0/0/0/0 Lore% 17 Gallery% 17 Achievement% 19 Wizard Run 0 Options --------- Layout 0 ASCII 0 Keyboard 0 Movement Arrows Keybinds 0 Fullscreen 1 Font 20/X11 Map View 66x50 Zoom Use 0% Tactical HUD 1 Map Filters NONE Filters NONE Steam 1 RUN: 79278a5d-b3c8-45ba-b765-4f7557fa191c